Cogmind - Beta 14 @@@ ROGUE MODE // 2024.08.19 @ 00:58:43 Player: THN-L0C Result: Self-destructed Performance ------------- Evolutions (2) 1000 Regions Visited (5) 1000 Robots Destroyed (20) 100 Value Destroyed (382) 382 Prototype IDs (23) 460 Alien Tech Used (0) 0 Bonus (300) 300 TOTAL SCORE: 3242 Bonus ------- Aligned with FarCom 300 Cogmind --------- Core Integrity 360/550 Matter 29/300 Energy 100/100 System Corruption 0% Temperature Cool (9) Movement Walking (120) Location -8/Materials Parts ------- > --- POWER (1) -------- (None) > --- PROPULSION (2) --- Aluminum Leg > --- UTILITY (6) ------ Small Storage Unit Signal Interpreter > --- WEAPON (2) ------- Powered Hammer > --- INVENTORY (8) ---- Improved Deuterium Engine Improved Deuterium Engine Gauss Cannon Gauss Cannon Gauss Cannon Deploy-a-Sentry Deploy-a-Sentry Deploy-a-Sentry Peak State ------------ > --- POWER ------------ Improved Deuterium Engine > --- PROPULSION ------- Carbon-fiber Leg Titanium Leg > --- UTILITY ---------- Small Storage Unit Signal Interpreter > --- WEAPON ----------- Gauss Cannon Grenade Launcher > --- INVENTORY -------- Improved Deuterium Engine Improved Deuterium Engine Gauss Cannon Gauss Cannon Katana Deploy-a-Sentry Deploy-a-Sentry Deploy-a-Sentry [Rating: 21] Favorites ----------- Power Ion Engine Engine Ion Engine Propulsion Aluminum Leg Leg Aluminum Leg Utility Small Storage Unit Storage Small Storage Unit Processor Signal Interpreter Weapon Grenade Launcher Ballistic Gun Assault Rifle Ballistic Cannon Gauss Cannon Launcher Grenade Launcher Impact Weapon Powered Hammer Build | -11 -10 -10 -10 -9 -8 ------- Run | Yrd Mat Min Exi Min Mat Slots Evolved 4 | . . . . . 4 Power . | . . . . . . Propulsion . | . . . . . . Utility 4 | . . . . . 4 Weapon . | . . . . . . Parts Attached 16 | 6 1 1 . . 8 Power 2 | 1 . . . . 1 Engine 2 | 1 . . . . 1 Core . | . . . . . . Reactor . | . . . . . . Propulsion 5 | 2 . . . . 3 Treads . | . . . . . . Leg 5 | 2 . . . . 3 Wheel . | . . . . . . Hover . | . . . . . . Flight . | . . . . . . Utility 4 | 1 . 1 . . 2 Device . | . . . . . . Storage 3 | 1 . . . . 2 Processor 1 | . . 1 . . . Hackware . | . . . . . . Protection . | . . . . . . Artifact . | . . . . . . Weapon 5 | 2 1 . . . 2 Energy Gun . | . . . . . . Energy Cannon . | . . . . . . Ballistic Gun 2 | 2 . . . . . Ballistic Cannon 1 | . . . . . 1 Launcher 1 | . 1 . . . . Special Weapon . | . . . . . . Impact Weapon 1 | . . . . . 1 Slashing Weapon . | . . . . . . Piercing Weapon . | . . . . . . Special Melee Weapon . | . . . . . . Unidentified Prototypes . | . . . . . . Parts Lost 3 | . . . . . 3 Power 1 | . . . . . 1 Propulsion 1 | . . . . . 1 Utility . | . . . . . . Weapon 1 | . . . . . 1 Highest Loss Streak 2 | . . . . . 2 To Critical Strikes . | . . . . . . Average Slot Usage (%) 75 | . 85 88 100 100 59 Engine 11 | . 14 14 14 14 8 Leg 22 | . 28 28 28 28 18 Storage 11 | . 14 14 14 14 9 Processor 8 | . . 3 14 14 9 Ballistic Gun 8 | . 27 14 14 14 1 Ballistic Cannon 3 | . . . . . 7 Launcher 7 | . . 14 14 14 5 Peak Build Rating 21 | 6 6 7 10 10 21 Average Rating 12 | 4 6 6 8 10 16 On Entrance 6 | . 6 6 7 10 10 Naked Turns . | . . . . . . Heaviest Build 25 | 13 15 15 15 15 25 Greatest Support 27 | 20 20 20 20 20 27 Greatest Overweight (x) 1 | . . . . . 1 Average Overweight (x) . | . . . . . . Largest Inventory Capacity 25 | 8 8 8 8 8 25 Average Capacity 7 | 6 8 8 8 8 8 Most Carried 8 | . 2 2 8 8 8 Average Carried 5 | . . 2 6 8 7 Final Capacity 8 | 8 8 8 8 8 8 Final Carried 8 | . 2 2 8 8 8 Class Distribution -------------------- 100% | Mutant Dominant Class ---------------- Mutant | -10/Materials Mutant | -10/Mines Mutant | -10/Exiles Mutant | -9/Mines Mutant | -8/Materials Resources | -11 -10 -10 -10 -9 -8 ----------- Run | Yrd Mat Min Exi Min Mat Matter Collected 395 | 209 47 62 . . 77 Remotely . | . . . . . . Salvage Created 219 | . 20 3 . . 196 Parts 27 | . 5 3 . . 19 Haulers Intercepted . | . . . . . . Recyclers Shooed . | . . . . . . Parts Field Recycled . | . . . . . . Retrieved Matter . | . . . . . . Parts Self-Destructed . | . . . . . . Prevented . | . . . . . . Kills | -11 -10 -10 -10 -9 -8 ------- Run | Yrd Mat Min Exi Min Mat Combat Hostiles Destroyed 17 | . 3 3 . . 11 Cannons 2 | . . . . . 2 AOE 15 | . 3 3 . . 9 Classes Destroyed 6 | . 1 . . . 5 Builder 1 | . . . . . 1 Operator 1 | . . . . . 1 Watcher 1 | . . . . . 1 Swarmer 13 | . 3 3 . . 7 Grunt 3 | . . . . . 3 Sentry 1 | . . . . . 1 Best Kill Streak 8 | . 3 6 . . 8 Combat Bots Only 7 | . 3 6 . . 7 Max Kills in Single Turn 3 | . 3 2 . . 3 Gunslinging . | . . . . . . Exploded 3 | . 3 2 . . 3 Melee . | . . . . . . Uniques/NPCs Destroyed . | . . . . . . Combat | -11 -10 -10 -10 -9 -8 -------- Run | Yrd Mat Min Exi Min Mat Hostile Shots Fired 82 | . 1 8 . . 73 Missed 40 | . 1 4 . . 35 Damage Taken 658 | . . 33 . . 625 Core 198 | . . 8 . . 190 Absorbed by Shields . | . . . . . . Core Remaining (%) 98 | 100 . . . 96 . Volleys Fired 23 | . 1 3 . . 19 Largest 2 | . 2 2 . . 2 Hottest 78 | . 50 50 . . 78 Shots Fired 44 | . 2 6 . . 36 Gun 4 | . 1 3 . . . Cannon 19 | . . . . . 19 Launcher 21 | . 1 3 . . 17 Special . | . . . . . . Kinetic 23 | . 1 3 . . 19 Thermal . | . . . . . . Explosive 21 | . 1 3 . . 17 Electromagnetic . | . . . . . . Robot Hit Streak 4 | . . . . . 4 Robot Miss Streak 3 | . . . . . 3 Penetration Max . | . . . . . . Secondary Targets . | . . . . . . Shots Hit Robots 10 | . . . . . 10 Core Hits 27 | . 3 3 . . 21 Critical Kills . | . . . . . . Critical Parts Destroyed . | . . . . . . Critical Strikes 2 | . . . . . 2 Blast 2 | . . . . . 2 Melee Attacks 5 | . . . . . 5 Impact 5 | . . . . . 5 Slashing . | . . . . . . Piercing . | . . . . . . Sneak Attacks . | . . . . . . Combat Hostiles . | . . . . . . Follow-up Attacks . | . . . . . . Damage Inflicted 1444 | 1 151 244 . . 1048 Guns . | . . . . . . Cannons 177 | . . . . . 177 Explosions 1257 | . 151 244 . . 862 Melee . | . . . . . . Ramming 10 | 1 . . . . 9 Kinetic 177 | . . . . . 177 Thermal . | . . . . . . Explosive 1257 | . 151 244 . . 862 Electromagnetic . | . . . . . . Impact . | . . . . . . Slashing . | . . . . . . Piercing . | . . . . . . Highest Corruption . | . . . . . . Average Corruption . | . . . . . . Corruption Purged . | . . . . . . Corruption Blocked . | . . . . . . Overload Shots . | . . . . . . Overflow Damage 25 | . . 3 . . 22 Projectiles . | . . . . . . Explosions 25 | . . 3 . . 22 Melee . | . . . . . . Knockbacks . | . . . . . . Impact . | . . . . . . Kinetic . | . . . . . . Secondary . | . . . . . . Self-Inflicted Damage . | . . . . . . Shots . | . . . . . . Rammed . | . . . . . . Targets Rammed 5 | 1 . . . . 4 Kicked 5 | 1 . . . . 4 Crushed . | . . . . . . Highest Temperature 69 | . . . . . 69 Average Temperature 13 | . . . . . 13 Received Heat Transfer 306 | . . . . . 306 Siege Activations . | . . . . . . Robots Corrupted . | . . . . . . Combat Hostiles . | . . . . . . Parts Fried . | . . . . . . Impact Corruptions . | . . . . . . Robots Melted . | . . . . . . Combat Hostiles . | . . . . . . Parts Melted . | . . . . . . Heat Transferred . | . . . . . . Parts Sabotaged . | . . . . . . Parts Stolen . | . . . . . . Parts Stripped . | . . . . . . Power Chain Reactions . | . . . . . . Alert | -11 -10 -10 -10 -9 -8 ------- Run | Yrd Mat Min Exi Min Mat Peak Influence 331 | . 91 144 . . 331 Initial 35 | . . 35 . . . Average 115 | . 5 128 . . 151 Maximum Alert Level 1 | . . . . . 1 Low Security (%) 70 | 100 100 100 . 100 57 Level 1 29 | . . . . . 42 Level 2 . | . . . . . . Level 3 . | . . . . . . Level 4 . | . . . . . . Level 5 . | . . . . . . High Security . | . . . . . . Max Security . | . . . . . . Squads Dispatched 4 | . . . . . 4 Investigation . | . . . . . . Extermination . | . . . . . . Reinforcement 3 | . . . . . 3 Assault 1 | . . . . . 1 Garrison . | . . . . . . Intercept . | . . . . . . Searches Triggered . | . . . . . . Construction Impeded 2 | . . . . . 2 Haulers Reinforced . | . . . . . . Active Scanning Responses . | . . . . . . Cargo Convoy Interrupts . | . . . . . . Stealth | -11 -10 -10 -10 -9 -8 --------- Run | Yrd Mat Min Exi Min Mat Distress Signals 3 | . 1 . . . 2 Communications Jammed . | . . . . . . Distress Signals . | . . . . . . Times Spotted 31 | . 6 3 . . 22 Peak Tracking Total 5 | . 5 3 . . 5 Tactical Retreats 1 | . . . . . 1 Traps | -11 -10 -10 -10 -9 -8 ------- Run | Yrd Mat Min Exi Min Mat Traps Triggered . | . . . . . . Indirectly . | . . . . . . Trap Hack Attempts . | . . . . . . Triggered . | . . . . . . Disarmed . | . . . . . . Reprogrammed . | . . . . . . Reused . | . . . . . . Traps Extracted . | . . . . . . Installed . | . . . . . . Triggered . | . . . . . . Machines | -11 -10 -10 -10 -9 -8 ---------- Run | Yrd Mat Min Exi Min Mat Machines Disabled 2 | . . 1 . . 1 Max in Single Turn 1 | . . 1 . . 1 Garrison Access 1 | . . . . . 1 Machines Repaired . | . . . . . . Machines Dismantled . | . . . . . . Machines Sabotaged . | . . . . . . Overloaded Fab Kills . | . . . . . . Hacking | -11 -10 -10 -10 -9 -8 --------- Run | Yrd Mat Min Exi Min Mat Machines Accessed 2 | . . . 1 . 1 Terminals . | . . . . . . Fabricators . | . . . . . . Repair Stations . | . . . . . . Recycling Units . | . . . . . . Scanalyzers . | . . . . . . Garrison Access 1 | . . . . . 1 Total Hacks 3 | . . . 1 . 2 Successful 1 | . . . 1 . . Failed 2 | . . . . . 2 Catastrophic 2 | . . . . . 2 Database Lockouts . | . . . . . . Manual 1 | . . . 1 . . Terminals . | . . . . . . Fabricators . | . . . . . . Repair Stations . | . . . . . . Recycling Units . | . . . . . . Scanalyzers . | . . . . . . Garrison Access 2 | . . . . . 2 Terminal Hacks 1 | . . . 1 . . Derelict Proto ID Bank 1 | . . . 1 . . Fabricator Hacks . | . . . . . . Repair Station Hacks . | . . . . . . Recycling Unit Hacks . | . . . . . . Scanalyzer . | . . . . . . Garrison Access Hacks . | . . . . . . Unauthorized Hacks . | . . . . . . Terminals . | . . . . . . Fabricators . | . . . . . . Repair Stations . | . . . . . . Recycling Units . | . . . . . . Scanalyzers . | . . . . . . Garrison Access . | . . . . . . Data Cores Recovered 1 | . . . . . 1 Used . | . . . . . . Hacking Detections 1 | . . . . . 1 Full Trace Events 1 | . . . . . 1 Feedback Events . | . . . . . . Feedback Blocked . | . . . . . . Robot Schematics Acquired . | . . . . . . Robots Built . | . . . . . . Authchips . | . . . . . . Time . | . . . . . . Total Robot Build Rating . | . . . . . . Part Schematics Acquired . | . . . . . . Parts Built . | . . . . . . Authchips . | . . . . . . Time . | . . . . . . Total Part Build Rating . | . . . . . . Parts Repaired . | . . . . . . Time . | . . . . . . Parts Recycled . | . . . . . . Recycled Matter . | . . . . . . Retrieved Matter . | . . . . . . Retrieved Components . | . . . . . . Parts Scanalyzed . | . . . . . . Part Schematics Acquired . | . . . . . . Parts Damaged . | . . . . . . Bothacking | -11 -10 -10 -10 -9 -8 ------------ Run | Yrd Mat Min Exi Min Mat Used RIF Installer . | . . . . . . Robots Hacked . | . . . . . . Non-combat . | . . . . . . Combat . | . . . . . . Robot Hacks Applied . | . . . . . . Relay Couplers Released 3 | . . . . . 3 Machine Destruction 3 | . . . . . 3 Fabnet Peak Effective % . | . . . . . . Robots Rewired . | . . . . . . Allies Hacked . | . . . . . . Hacks Repelled . | . . . . . . Allies | -11 -10 -10 -10 -9 -8 -------- Run | Yrd Mat Min Exi Min Mat Total Allies 1 | . . . . 1 . Largest Group 1 | . . . . . 1 Highest-Rated Group 31 | . . . . . 31 Highest-Rated Ally 31 | . . . . . 31 Total Orders . | . . . . . . Ally Attacks 7 | . . . . . 7 Total Damage 83 | . . . . . 83 Kills . | . . . . . . Allies Corrupted . | . . . . . . Allies Melted . | . . . . . . Intel | -11 -10 -10 -10 -9 -8 ------- Run | Yrd Mat Min Exi Min Mat Robot Analysis Total . | . . . . . . Derelict Logs Recovered . | . . . . . . Drone Launches . | . . . . . . Drone Recoveries . | . . . . . . Exploration | -11 -10 -10 -10 -9 -8 ------------- Run | Yrd Mat Min Exi Min Mat Turns Passed 1376 | 54 157 91 299 41 734 Spaces Moved 930 | 41 126 68 245 35 415 Core 7 | 7 . . . . . Treads . | . . . . . . Legs 923 | 34 126 68 245 35 415 Wheels . | . . . . . . Hover . | . . . . . . Flight . | . . . . . . Fastest Speed 50 | 50 120 120 120 120 120 Average Speed 123 | 108 120 120 120 120 128 Slowest Speed 190 | 120 120 120 120 120 190 Overloaded Moves . | . . . . . . Propulsion Burnouts . | . . . . . . Robots Hopped . | . . . . . . Cave-ins Triggered . | . . . . . . Exploration Rate (%) 26 | 4 26 19 61 14 33 Regions Visited 5 Branch Regions 3 Pre-discovered Areas . | . . . . . . Known Exits Taken 3 | . . 1 1 1 . Unknown Exits Taken 2 | 1 1 . . . . Scrap Searched 1 | . . 1 . . . Spaces Dug 47 | . . 7 . . 40 Terrain Destroyed 163 | . 5 24 . . 134 Melee 5 | . . . . . 5 Projectile 16 | . . . . . 16 AOE 142 | . 5 24 . . 113 Terrain Rammed . | . . . . . . Walls Destroyed . | . . . . . . Machines Disabled . | . . . . . . Actions | -11 -10 -10 -10 -9 -8 --------- Run | Yrd Mat Min Exi Min Mat Total 1105 | 47 129 71 250 34 574 Wait 105 | . . . . . 105 Move 925 | 40 125 67 244 34 415 Hop . | . . . . . . Pick Up 15 | . 2 . 6 . 7 Fast Attach 8 | 6 . 1 . . 1 Attach . | . . . . . . Detach 1 | . . . . . 1 Swap 8 | . 1 . . . 7 Drop 10 | . . . . . 10 Fire 23 | . 1 3 . . 19 Melee 5 | . . . . . 5 Ram . | . . . . . . Kick 5 | 1 . . . . 4 Crush . | . . . . . . Escape Stasis . | . . . . . . Rewire . | . . . . . . Trap . | . . . . . . Miscellaneous . | . . . . . . Route ------- -11/Scrapyard -10/Materials -10/Mines -10/Exiles -9/Mines -8/Materials (discovered 1 exit: *Fac) History --------- Turn | Location | Event 5 | -11/Scrapyard | Discovered new exit (range 16) 55 | -11/Scrapyard | Entered Materials 198 | -10/Materials | Discovered new exit (range 8) 212 | -10/Materials | Entered Mines 297 | -10/Mines | Deemed a non-threat by the Exiles lab entrance 299 | -10/Mines | Discovered new exit (range 5) 302 | -10/Mines | Build established: Mutant 302 | -10/Mines | Identified exit to Exiles 303 | -10/Mines | Entered Exiles 340 | -10/Exiles | Met 8R-AWN 365 | -10/Exiles | Met EX-HEX 399 | -10/Exiles | Met EX-BIN 413 | -10/Exiles | Aligned with FarCom system 414 | -10/Exiles | Given EX-Vault access code 450 | -10/Exiles | Opened EX-Vault 473 | -10/Exiles | Found Deploy-a-Sentry 475 | -10/Exiles | Found Deploy-a-Sentry 478 | -10/Exiles | Found Deploy-a-Sentry 504 | -10/Exiles | Warned to stay clear of 0b10 Research branches 547 | -10/Exiles | Met EX-DEC 589 | -10/Exiles | Discovered new exit (range 14) 601 | -10/Exiles | Identified exit to Mines 602 | -10/Exiles | Left Exiles lab with Deploy-a-Sentry 602 | -10/Exiles | Entered Mines 634 | -9/Mines | Discovered new exit (range 9) 639 | -9/Mines | Received a Mining Laser from a helpful Derelict 642 | -9/Mines | Identified exit to Materials 643 | -9/Mines | Entered Materials 643 | -8/Materials | Accompanied by 1 ally 643 | -8/Materials | Evolved 4 slots: Utility x4 974 | -8/Materials | Destroyed 7 combat bots 1042 | -8/Materials | Discovered new exit (range 15) 1146 | -8/Materials | Identified exit to Factory 1377 | -8/Materials | Self-destructed Last Messages --------------- 01079_ The unstable cave ceiling collapses. 01099_ Critical hit (Burn: +37). 01104_ Acquired 4 matter. 01107_ G-47 Trooper destroyed. 01109_ Grenade Launcher destroyed. 01109_ Critical hit (Burn: +37). 01116_ Kicked G-47 Trooper. 01120_ Kicked G-47 Trooper out of the way. 01125_ Slug penetrates Wall. 01126_ U-05 Engineer builds a Wall. 01126_ G-47 Trooper destroyed. 01127_ Penetrated by Slug. 01127_ U-05 Engineer lays Concrete. 01139_ Acquired 18 matter. 01141_ The unstable cave ceiling collapses. 01146_ EXIT=IDENTIFIED: FACTORY 01146_ U-05 Engineer builds a Wall. 01352_ The unstable cave ceiling collapses. 01364_ Imp. Deuterium Engine destroyed. 01376_ Carbon-fiber Leg destroyed. Map ----- +----------------------------------------------------+ | ????????????????????????# #??????? | | ????????????????????????# #??????? | | ?????????????????######?# #######+#######??????? | | ?????????????????# """ !# "# " #?????????? | | ?????????????????# """ # ##### ""#?????????? | | ?????????????????+ """ + #???# T"#?????????? | | ?????????????????# # #???# ""#?????????? | | ?????????????????# =# #???# #?????????? | | ?????????????????#! ! ?# #???# #?????????? | | ?????????????????######?# #?##########?????????? | | ????????????????????????# # ! ##?????????? | | ????????????????????????# # ] #?????????? | | ????????????????????????# /Y = #??????????? | | ????????????????????????# # #??????????? | | ????????????????????????# # """ "" #??????????? | | ????????????????????????# #?""" S"" #??????????? | | ????????????????????????# #?""" "" ????????????? | | ????????????????????????# #?? ?????????????? | | ????????????????????????# #??###???????????????? | | ????????????????????????# #????????????????????? | | ????????????????????????# #????????????????????? | | ????????????????????????# #????????????????????? | | ????????????????????????# #????????????????????? | | ????????????????????????# #????????????????????? | | ????????????????????????# #????????????????????? | | ????????????????????????#@ #????????????????????? | | ??????????????????????? ; gg/ ???????????????? | | ????????????????????? #g # #?????????????? | | ??????????????????? # #] [ #?????????????? | | ?????????????????# ?# #?######?????????????? | | ?????????????????#####??# #????????????????????? | | ????????????????????????# #????????????????????? | | ????????????????????????# #????????????????????? | | ????????????????????????# #????????????????????? | | ????????????????????????? #????????????????????? | | ????????????????????????? #????????????????????? | | ????????????????????????? "????????????????????? | | ????????????????????????? "????????????????????? | | ????????????????????????? T????????????????????? | | ????????????????????????? "????????????????????? | | ????????????????????????? ?????????????????????? | | ?????????????????????????w???????????????????????? | | ?????????????????????????????????????????????????? | | ?????????????????????????????????????????????????? | | ?????????????????????????????????????????????????? | | ?????????????????????????????????????????????????? | | ?????????????????????????????????????????????????? | | ?????????????????????????????????????????????????? | | ?????????????????????????????????????????????????? | | ?????????????????????????????????????????????????? | +----------------------------------------------------+ Best States ------------- Heat Dissipation 31 Energy Generation 16 Energy Capacity 290 Matter Stores 300 Matter Capacity 300 Sight Range 16 Terrain Scan Density 10 Evasion (%) 55 Item Schematics ----------------- None Robot Schematics ------------------ None Fabricated ------------ Nothing Alien Tech Used ----------------- None Achievements -------------- None Challenges ------------ None Game ------ Seed PortableBlastLance Manual? 0 Play Time 00:09:32 Cumulative 74.5 hours Start 2024.08.19 @ 00:49:12 End 2024.08.19 @ 00:58:43 Sessions 1 Manual Loads 0 Difficulty Rogue Special Mode None Game No. 74 Rogue 74 Adventurer 0 Explorer 0 Win Type - Total 0 Types 0/0/0/0/0/0/0/0/0 Lore% 46 Gallery% 49 Achievement% 40 Wizard Run 0 Options --------- Layout 2 ASCII 0 Keyboard 1 Movement Vi Keybinds 0 Fullscreen 1 Font 32/SmallcapsGlow Map View 77x44 Zoom Use 0% Tactical HUD 1 Map Filters NONE Filters NONE Steam 1 RUN: 4d0b7944-9ee1-47a2-846d-23bbbfd683f3